Cogmind - Beta 14 @@@ ROGUE MODE // 2024.11.03 @ 11:10:09 Player: Thqwib Result: Self-destructed Performance ------------- Evolutions (3) 1500 Regions Visited (8) 1600 Robots Destroyed (49) 245 Value Destroyed (1847) 1847 Prototype IDs (2) 40 Alien Tech Used (0) 0 Bonus (1436) 1436 TOTAL SCORE: 6668 Bonus ------- High Alert Combat Kills 256 Follower Combat Kills 106 Entered Garrisons 200 Used RIF Installer 500 Entered DSFs 500 Friendly Fire -126 Cogmind --------- Core Integrity 408/700 Matter 70/300 Energy 28/100 System Corruption 4% Temperature Cool (0) Movement Flying (40) Location -7/DSF Parts ------- > --- POWER (1) -------- (None) > --- PROPULSION (4) --- Flight Unit > --- UTILITY (6) ------ Improved Propulsion Shielding Relay Coupler [Grunt] (22) > --- WEAPON (2) ------- (None) > --- INVENTORY (5) ---- Flight Unit Improved Sensor Array Relay Coupler [Grunt] (21) Remote Datajack Peak State ------------ > --- POWER ------------ Light Ion Engine > --- PROPULSION ------- Flight Unit Flight Unit Flight Unit Xenon Bombardment Thruster > --- UTILITY ---------- Improved Heat Sink Improved Propulsion Shielding Utility Shielding Hacking Suite Relay Coupler [Grunt] Relay Coupler [Sentry] > --- WEAPON ----------- Heavy EM Shotgun Remote Datajack > --- INVENTORY -------- Flight Unit Improved Sensor Array Relay Coupler [Grunt] Heavy Laser Katana [Rating: 34] Favorites ----------- Power Light Ion Engine Engine Light Ion Engine Power Core Micro Nuclear Core Propulsion Flight Unit Treads Light Treads Leg Aluminum Leg Wheel Compact Wheel Hover Unit Aerolev Unit Flight Unit Flight Unit Utility Targeting Computer Device Improved Heat Sink Storage Medium Storage Unit Processor Targeting Computer Hackware Hacking Suite Protection Utility Shielding Weapon Arc Projector Energy Gun Arc Projector Energy Cannon Improved EM Pulse Cannon Ballistic Gun Light Assault Rifle Special Weapon Remote Datajack Slashing Weapon Katana Special Melee Weapon Improved Datajack Build | -11 -10 -10 -10 -9 -8 -8 -7 -7 ------- Run | Yrd Mat Min Exi Min Mat Gar Fac DSF Slots Evolved 6 | . . . . . 4 . 2 . Power . | . . . . . . . . . Propulsion 2 | . . . . . 1 . 1 . Utility 4 | . . . . . 3 . 1 . Weapon . | . . . . . . . . . Parts Attached 105 | . 5 3 1 5 23 55 7 6 Power 10 | . . 1 1 1 2 5 . . Engine 9 | . . 1 1 1 2 4 . . Core 1 | . . . . . . 1 . . Reactor . | . . . . . . . . . Propulsion 29 | . 2 2 . . 10 13 2 . Treads 6 | . . . . . . 6 . . Leg . | . . . . . . . . . Wheel 4 | . 2 2 . . . . . . Hover 4 | . . . . . 4 . . . Flight 15 | . . . . . 6 7 2 . Utility 15 | . 2 . . . 5 7 1 . Device 3 | . . . . . 1 2 . . Storage 1 | . 1 . . . . . . . Processor 3 | . 1 . . . 2 . . . Hackware 3 | . . . . . 1 2 . . Protection 5 | . . . . . 1 3 1 . Artifact . | . . . . . . . . . Weapon 51 | . 1 . . 4 6 30 4 6 Energy Gun 12 | . 1 . . 1 . 6 2 2 Energy Cannon 3 | . . . . . . . 1 2 Ballistic Gun 17 | . . . . 3 3 11 . . Ballistic Cannon . | . . . . . . . . . Launcher . | . . . . . . . . . Special Weapon 2 | . . . . . . 2 . . Impact Weapon . | . . . . . . . . . Slashing Weapon 16 | . . . . . 2 11 1 2 Piercing Weapon . | . . . . . . . . . Special Melee Weapon 1 | . . . . . 1 . . . Unidentified Prototypes 2 | . . . . . 1 . 1 . Corrupted Parts 1 | . . . . . . 1 . . System Corruption 1 | . . . . . . 1 . . Parts Lost 9 | . . . . . . 3 . 6 Power 2 | . . . . . . 2 . . Propulsion 2 | . . . . . . 1 . 1 Utility 4 | . . . . . . . . 4 Weapon 1 | . . . . . . . . 1 Highest Loss Streak 6 | . . . . . . 2 . 6 To Critical Strikes . | . . . . . . . . . Average Slot Usage (%) 96 | . 98 100 100 100 83 97 94 91 Engine 10 | . 14 14 14 14 9 8 7 5 Treads 8 | . . . . . . 15 . . Wheel 8 | . 27 28 28 28 . . . . Flight 8 | . . . . . 11 11 30 26 Device 4 | . . . . . 2 7 7 7 Storage 4 | . 14 14 14 14 . . . . Processor 13 | . 13 14 14 14 20 13 . . Hackware 6 | . . . . . 4 9 23 23 Protection 8 | . . . . . 2 13 9 15 Energy Gun 7 | . 1 14 14 6 . 7 5 . Ballistic Gun 9 | . 26 14 14 21 11 4 . . Slashing Weapon 3 | . . . . . 4 5 1 . Peak Build Rating 34 | 6 7 7 7 8 30 26 34 34 Average Rating 17 | 6 6 7 7 7 19 21 29 30 On Entrance 13 | 6 6 7 7 7 8 20 25 33 Naked Turns . | . . . . . . . . . Heaviest Build 23 | 10 15 15 17 17 12 23 17 17 Greatest Support 60 | 20 20 32 32 32 24 60 18 18 Greatest Overweight (x) 2 | . . . . . 1 2 . . Average Overweight (x) . | . . . . . . . . . Largest Inventory Capacity 10 | 8 10 10 10 10 10 5 5 5 Average Capacity 6 | 8 8 10 10 10 5 5 5 5 Most Carried 10 | 6 7 6 7 10 9 5 5 5 Average Carried 5 | 6 5 4 5 8 4 4 4 4 Final Capacity 10 | 8 10 10 10 10 5 5 5 5 Final Carried 9 | 6 6 5 6 9 5 5 5 4 Class Distribution -------------------- 56% | Scavenger-Mutant 30% | Mutant 5% | Commander-Mutant 4% | Scavenger-Sprinter 3% | Scavenger-Scout Dominant Class ---------------- Mutant | -10/Materials Mutant | -10/Mines Mutant | -10/Exiles Mutant | -9/Mines Mutant | -8/Materials Scavenger-Mutant | -8/Garrison Scavenger-Sprinter | -7/Factory Scavenger-Sprinter | -7/DSF Resources | -11 -10 -10 -10 -9 -8 -8 -7 -7 ----------- Run | Yrd Mat Min Exi Min Mat Gar Fac DSF Matter Collected 1586 | 200 45 21 73 119 162 966 . . Remotely . | . . . . . . . . . Salvage Created 1864 | . 91 41 97 295 441 879 . 20 Parts 123 | . 4 4 5 18 27 63 . 2 Haulers Intercepted 4 | . 1 . . . 3 . . . Recyclers Shooed 2 | . . . . 2 . . . . Parts Field Recycled . | . . . . . . . . . Retrieved Matter . | . . . . . . . . . Parts Self-Destructed . | . . . . . . . . . Prevented . | . . . . . . . . . Kills | -11 -10 -10 -10 -9 -8 -8 -7 -7 ------- Run | Yrd Mat Min Exi Min Mat Gar Fac DSF Combat Hostiles Destroyed 40 | . 1 3 . 9 6 20 . 1 Melee 2 | . . . . . 2 . . . Guns 38 | . 1 3 . 9 4 20 . 1 Classes Destroyed 9 | . 2 1 . 1 1 3 . 1 Hauler 4 | . 1 . . . 3 . . . Recycler 4 | . . . . 2 2 . . . Swarmer 22 | . . 3 . 9 4 6 . . Cutter 1 | . . . . . . . . 1 Grunt 7 | . 1 . . 1 1 4 . . Brawler 2 | . . . . . . 2 . . Duelist 1 | . . . . . . 1 . . Sentry 6 | . . . . . 1 5 . . Programmer 2 | . . . . . . 2 . . Best Kill Streak 5 | . 2 3 . 4 5 3 . 1 Combat Bots Only 4 | . 1 3 . 4 4 3 . 1 Max Kills in Single Turn 2 | . 1 1 . 2 2 2 . 1 Gunslinging 1 | . . . . . 1 1 . . Exploded . | . . . . . . . . . Melee 1 | . . . . . 1 . . . Uniques/NPCs Destroyed . | . . . . . . . . . Combat | -11 -10 -10 -10 -9 -8 -8 -7 -7 -------- Run | Yrd Mat Min Exi Min Mat Gar Fac DSF Hostile Shots Fired 249 | . 4 15 . 46 28 113 . 43 Missed 82 | . 2 4 . 10 9 34 . 23 Damage Taken 2219 | . 21 89 . 317 232 1023 . 537 Core 562 | . 10 9 . 65 27 159 . 292 Absorbed by Shields . | . . . . . . . . . Redirected to Shielding 103 | . . . . . . 4 . 99 Core Remaining (%) 77 | 100 . . . 66 . 66 . . Volleys Fired 141 | . 10 6 6 29 7 77 3 3 Largest 2 | . 2 2 2 2 2 2 1 2 Hottest 138 | . 40 60 60 60 46 79 5 138 Shots Fired 278 | . 20 12 13 59 14 153 3 4 Gun 273 | . 20 12 13 59 14 152 . 3 Cannon 1 | . . . . . . . . 1 Launcher . | . . . . . . . . . Special 4 | . . . . . . 1 3 . Kinetic 195 | . 20 6 7 51 14 97 . . Thermal 29 | . . 6 6 8 . 6 . 3 Explosive . | . . . . . . . . . Electromagnetic 50 | . . . . . . 49 . 1 Robot Hit Streak 23 | . 6 7 4 5 9 23 2 3 Robot Miss Streak 5 | . 2 3 1 5 1 2 1 1 Penetration Max . | . . . . . . . . . Secondary Targets 9 | . . 2 . 3 1 3 . . Max Gunslinging Chain 1 | . . 1 . 1 1 1 . . Shots Hit Robots 196 | . 11 8 9 27 22 115 2 2 Core Hits 88 | . 4 4 4 18 12 43 . 3 Critical Kills 1 | . . . . . . 1 . . Critical Parts Destroyed . | . . . . . . . . . Critical Strikes 3 | . . . . . 1 2 . . Burn 1 | . . . . . . 1 . . Destroy 1 | . . . . . . 1 . . Sever 1 | . . . . . 1 . . . Melee Attacks 209 | . . . . . 13 194 1 1 Impact . | . . . . . . . . . Slashing 209 | . . . . . 13 194 1 1 Piercing . | . . . . . . . . . Sneak Attacks 4 | . . . . . 4 . . . Combat Hostiles . | . . . . . . . . . Follow-up Attacks . | . . . . . . . . . Damage Inflicted 2773 | . 98 77 118 258 652 1489 . 81 Guns 2265 | . 98 77 118 256 171 1489 . 56 Cannons 25 | . . . . . . . . 25 Explosions . | . . . . . . . . . Melee 481 | . . . . . 481 . . . Ramming 2 | . . . . 2 . . . . Kinetic 1709 | . 98 34 49 180 171 1177 . . Thermal 317 | . . 43 69 76 . 73 . 56 Explosive . | . . . . . . . . . Electromagnetic 264 | . . . . . . 239 . 25 Impact . | . . . . . . . . . Slashing 481 | . . . . . 481 . . . Piercing . | . . . . . . . . . Highest Corruption 4 | . 2 2 2 2 . 4 . 4 Average Corruption 1 | . 2 2 2 2 . 1 . 4 Corruption Purged . | . . . . . . . . . Corruption Blocked . | . . . . . . . . . Effects 24 | . . 3 8 6 . 7 . . Message Errors 3 | . . . 3 . . . . . Matter Fused 7 | . . 2 2 2 . 1 . . Heat Flow Errors 5 | . . . 2 . . 3 . . Energy Discharges 2 | . . . . 1 . 1 . . Data Loss (minor) 3 | . . . . 1 . 2 . . Data Loss (major) 1 | . . . . 1 . . . . Misfires 2 | . . . 1 1 . . . . Alerts 1 | . . 1 . . . . . . Overload Shots . | . . . . . . . . . Overflow Damage . | . . . . . . . . . Projectiles . | . . . . . . . . . Explosions . | . . . . . . . . . Melee . | . . . . . . . . . Knockbacks . | . . . . . . . . . Impact . | . . . . . . . . . Kinetic . | . . . . . . . . . Secondary . | . . . . . . . . . Self-Inflicted Damage 1 | . . . . 1 . . . . Shots . | . . . . . . . . . Rammed 2 | . . . . 2 . . . . Targets Rammed 2 | . . . . 2 . . . . Kicked . | . . . . . . . . . Crushed . | . . . . . . . . . Highest Temperature 306 | . 12 40 306 40 223 207 . . Average Temperature 64 | . 8 18 175 25 73 33 . . Received Heat Transfer 381 | . 12 . . . 54 315 . . Siege Activations . | . . . . . . . . . Robots Corrupted . | . . . . . . . . . Combat Hostiles . | . . . . . . . . . Parts Fried . | . . . . . . . . . Impact Corruptions . | . . . . . . . . . Robots Melted . | . . . . . . . . . Combat Hostiles . | . . . . . . . . . Parts Melted . | . . . . . . . . . Heat Transferred 795 | . . 100 150 175 . 259 . 111 Parts Sabotaged . | . . . . . . . . . Parts Stolen . | . . . . . . . . . Parts Stripped . | . . . . . . . . . Power Chain Reactions . | . . . . . . . . . Alert | -11 -10 -10 -10 -9 -8 -8 -7 -7 ------- Run | Yrd Mat Min Exi Min Mat Gar Fac DSF Peak Influence 1377 | . 62 94 . 335 333 1377 745 581 Initial 722 | . . 24 . . 52 216 722 521 Average 596 | . 22 89 . 134 123 819 735 536 Maximum Alert Level 4 | . . . . 1 1 4 3 2 Low Security (%) 26 | 100 100 100 . 82 88 . . . Level 1 9 | . . . . 17 11 9 . . Level 2 14 | . . . . . . 18 . 100 Level 3 39 | . . . . . . 56 100 . Level 4 9 | . . . . . . 14 . . Level 5 . | . . . . . . . . . High Security . | . . . . . . . . . Max Security . | . . . . . . . . . Squads Dispatched 6 | . 1 . . . 2 . . 3 Investigation 1 | . . . . . 1 . . . Extermination . | . . . . . . . . . Reinforcement 5 | . 1 . . . 1 . . 3 Assault . | . . . . . . . . . Garrison . | . . . . . . . . . Intercept . | . . . . . . . . . Searches Triggered . | . . . . . . . . . Construction Impeded . | . . . . . . . . . Haulers Reinforced . | . . . . . . . . . Active Scanning Responses . | . . . . . . . . . Cargo Convoy Interrupts . | . . . . . . . . . Stealth | -11 -10 -10 -10 -9 -8 -8 -7 -7 --------- Run | Yrd Mat Min Exi Min Mat Gar Fac DSF Distress Signals 2 | . . . . 1 1 . . . Communications Jammed . | . . . . . . . . . Distress Signals . | . . . . . . . . . Times Spotted 76 | . 6 3 . 17 14 23 . 13 Peak Tracking Total 9 | . 3 3 . 4 9 3 . 7 Tactical Retreats 4 | . . . . . 1 1 . 2 Traps | -11 -10 -10 -10 -9 -8 -8 -7 -7 ------- Run | Yrd Mat Min Exi Min Mat Gar Fac DSF Traps Triggered 5 | . 1 . . . . 2 . 2 Indirectly . | . . . . . . . . . Trap Hack Attempts . | . . . . . . . . . Triggered . | . . . . . . . . . Disarmed . | . . . . . . . . . Reprogrammed . | . . . . . . . . . Reused . | . . . . . . . . . Traps Extracted . | . . . . . . . . . Installed . | . . . . . . . . . Triggered . | . . . . . . . . . Machines | -11 -10 -10 -10 -9 -8 -8 -7 -7 ---------- Run | Yrd Mat Min Exi Min Mat Gar Fac DSF Machines Disabled 4 | . . . . . . 4 . . Max in Single Turn 1 | . . . . . . 1 . . Garrison Relay 4 | . . . . . . 4 . . Machines Repaired . | . . . . . . . . . Machines Dismantled . | . . . . . . . . . Machines Sabotaged . | . . . . . . . . . Overloaded Fab Kills . | . . . . . . . . . Hacking | -11 -10 -10 -10 -9 -8 -8 -7 -7 --------- Run | Yrd Mat Min Exi Min Mat Gar Fac DSF Machines Accessed 12 | . 1 . . . 5 2 4 . Terminals 10 | . 1 . . . 4 2 3 . Fabricators . | . . . . . . . . . Repair Stations 1 | . . . . . . . 1 . Recycling Units . | . . . . . . . . . Scanalyzers . | . . . . . . . . . Garrison Access 1 | . . . . . 1 . . . Total Hacks 33 | . 4 . . . 14 7 8 . Successful 17 | . 2 . . . 9 3 3 . Failed 16 | . 2 . . . 5 4 5 . Catastrophic 4 | . . . . . 2 1 1 . Database Lockouts . | . . . . . . . . . Manual 23 | . 3 . . . 10 6 4 . Terminals 28 | . 4 . . . 13 7 4 . Fabricators . | . . . . . . . . . Repair Stations 4 | . . . . . . . 4 . Recycling Units . | . . . . . . . . . Scanalyzers . | . . . . . . . . . Garrison Access 1 | . . . . . 1 . . . Terminal Hacks 7 | . 1 . . . 4 1 1 . Record 1 | . . . . . 1 . . . Open DSF 1 | . . . . . . . 1 . Maintenance Status 1 | . . . . . 1 . . . Recall Investigation 1 | . . . . . 1 . . . Zone Layout 3 | . 1 . . . 1 1 . . Fabricator Hacks . | . . . . . . . . . Repair Station Hacks 1 | . . . . . . . 1 . Scan Component 1 | . . . . . . . 1 . Recycling Unit Hacks . | . . . . . . . . . Scanalyzer . | . . . . . . . . . Garrison Access Hacks 1 | . . . . . 1 . . . Unlock Access 1 | . . . . . 1 . . . Unauthorized Hacks 8 | . 1 . . . 4 2 1 . Terminals 8 | . 1 . . . 4 2 1 . Assimilate 1 | . . . . . 1 . . . Botnet 7 | . 1 . . . 3 2 1 . Fabricators . | . . . . . . . . . Repair Stations . | . . . . . . . . . Recycling Units . | . . . . . . . . . Scanalyzers . | . . . . . . . . . Garrison Access . | . . . . . . . . . Data Cores Recovered . | . . . . . . . . . Used . | . . . . . . . . . Hacking Detections 11 | . 1 . . . 5 2 3 . Full Trace Events 2 | . . . . . 2 . . . Feedback Events . | . . . . . . . . . Feedback Blocked . | . . . . . . . . . Robot Schematics Acquired . | . . . . . . . . . Robots Built . | . . . . . . . . . Authchips . | . . . . . . . . . Time . | . . . . . . . . . Total Robot Build Rating . | . . . . . . . . . Part Schematics Acquired . | . . . . . . . . . Parts Built . | . . . . . . . . . Authchips . | . . . . . . . . . Time . | . . . . . . . . . Total Part Build Rating . | . . . . . . . . . Parts Repaired . | . . . . . . . . . Time . | . . . . . . . . . Parts Recycled . | . . . . . . . . . Recycled Matter . | . . . . . . . . . Retrieved Matter . | . . . . . . . . . Retrieved Components . | . . . . . . . . . Parts Scanalyzed . | . . . . . . . . . Part Schematics Acquired . | . . . . . . . . . Parts Damaged . | . . . . . . . . . Bothacking | -11 -10 -10 -10 -9 -8 -8 -7 -7 ------------ Run | Yrd Mat Min Exi Min Mat Gar Fac DSF Used RIF Installer 1 | . . . . . . 1 . . Robots Hacked 2 | . . . . . . . 2 . Non-combat 2 | . . . . . . . 2 . Combat . | . . . . . . . . . Robot Hacks Applied 2 | . . . . . . . 2 . find_chute 1 | . . . . . . . 1 . ignore_repairs 1 | . . . . . . . 1 . Relay Couplers Released 16 | . . . . . . 16 . . Machine Destruction 16 | . . . . . . 16 . . Attached 2 | . . . . . . 2 . . Fabnet Peak Effective % . | . . . . . . . . . Robots Rewired 5 | . . . 5 . . . . . Allies Hacked . | . . . . . . . . . Hacks Repelled . | . . . . . . . . . Allies | -11 -10 -10 -10 -9 -8 -8 -7 -7 -------- Run | Yrd Mat Min Exi Min Mat Gar Fac DSF Total Allies 5 | . . . 5 . . . . . Largest Group 5 | . . . 5 5 . . . . Highest-Rated Group 53 | . . . 53 53 . . . . Highest-Rated Ally 21 | . . . 21 21 . . . . Total Orders . | . . . . . . . . . Ally Attacks 17 | . . . . 17 . . . . Total Damage 340 | . . . . 340 . . . . Kills 6 | . . . . 6 . . . . Allies Corrupted . | . . . . . . . . . Allies Melted . | . . . . . . . . . Intel | -11 -10 -10 -10 -9 -8 -8 -7 -7 ------- Run | Yrd Mat Min Exi Min Mat Gar Fac DSF Robot Analysis Total . | . . . . . . . . . Derelict Logs Recovered 2 | . . . . 2 . . . . Drone Launches . | . . . . . . . . . Drone Recoveries . | . . . . . . . . . Exploration | -11 -10 -10 -10 -9 -8 -8 -7 -7 ------------- Run | Yrd Mat Min Exi Min Mat Gar Fac DSF Turns Passed 3777 | 2 193 145 365 460 214 2194 108 96 Spaces Moved 3171 | 2 188 120 282 312 243 1659 279 86 Core . | . . . . . . . . . Treads 553 | . . . . . . 553 . . Legs 6 | 2 4 . . . . . . . Wheels 898 | . 184 120 282 312 . . . . Hover 138 | . . . . . 138 . . . Flight 1576 | . . . . . 105 1106 279 86 Fastest Speed 31 | 120 80 100 100 100 34 34 31 31 Average Speed 73 | 120 80 100 100 100 39 76 31 33 Slowest Speed 200 | 120 120 100 100 100 110 200 31 40 Overloaded Moves . | . . . . . . . . . Propulsion Burnouts . | . . . . . . . . . Robots Hopped 3 | . . . . . . . . 3 Cave-ins Triggered . | . . . . . . . . . Exploration Rate (%) 45 | 2 42 32 68 80 35 74 9 67 Regions Visited 8 Branch Regions 3 Pre-discovered Areas . | . . . . . . . . . Known Exits Taken 2 | . . . . . 1 . 1 . Unknown Exits Taken 5 | 1 1 1 1 1 . . . . Scrap Searched 1 | . . . . 1 . . . . Spaces Dug 67 | . . . . . 2 64 1 . Terrain Destroyed 67 | . . . . . 2 64 1 . Melee 67 | . . . . . 2 64 1 . Projectile . | . . . . . . . . . AOE . | . . . . . . . . . Terrain Rammed . | . . . . . . . . . Walls Destroyed . | . . . . . . . . . Machines Disabled . | . . . . . . . . . Actions | -11 -10 -10 -10 -9 -8 -8 -7 -7 --------- Run | Yrd Mat Min Exi Min Mat Gar Fac DSF Total 4034 | 1 214 134 354 413 332 2148 296 142 Wait 174 | . 2 2 2 54 21 82 . 11 Move 3157 | 1 187 119 281 311 243 1657 278 80 Hop 3 | . . . . . . . . 3 Pick Up 30 | . 4 1 1 6 7 10 1 . Fast Attach 35 | . 2 . . . 10 18 5 . Attach 19 | . 2 . . 2 6 7 1 1 Detach 5 | . . . . . . 3 2 . Swap 55 | . 1 3 1 3 7 34 1 5 Drop 68 | . 6 3 1 6 18 28 4 2 Fire 141 | . 10 6 6 29 7 77 3 3 Melee 209 | . . . . . 13 194 1 1 Ram 2 | . . . . 2 . . . . Kick . | . . . . . . . . . Crush . | . . . . . . . . . Escape Stasis 72 | . . . . . . 36 . 36 Rewire 64 | . . . 62 . . 2 . . Trap . | . . . . . . . . . Miscellaneous . | . . . . . . . . . Route ------- -11/Scrapyard -10/Materials (discovered 2 exits: [*Mat] / [*Min]) -10/Mines (discovered 2 exits: [*Mat] / *Exi) -10/Exiles -9/Mines -8/Materials -8/Garrison (discovered 2 exits: *Fac x2) -7/Factory -7/DSF History --------- Turn | Location | Event 1 | -11/Scrapyard | Discovered new exit (range 1) 3 | -11/Scrapyard | Entered Materials 136 | -10/Materials | Discovered new exit (range 16) 190 | -10/Materials | Discovered new exit (range 9) 196 | -10/Materials | Entered Mines 229 | -10/Mines | Discovered new exit (range 5) 290 | -10/Mines | Received a Rocket Launcher from a helpful Derelict 301 | -10/Mines | Build established: Mutant 336 | -10/Mines | Deemed a non-threat by the Exiles lab entrance 337 | -10/Mines | Discovered new exit (range 5) 341 | -10/Mines | Entered Exiles 341 | -10/Exiles | Found Exiles lab destroyed 694 | -10/Exiles | Discovered new exit (range 11) 706 | -10/Exiles | Entered Mines 706 | -9/Mines | Accompanied by 5 allies 939 | -9/Mines | Learned Materials terminal intel 1106 | -9/Mines | Assembled infested the area 1111 | -9/Mines | Learned Materials stockpile data 1157 | -9/Mines | Discovered new exit (range 9) 1166 | -9/Mines | Entered Materials 1166 | -8/Materials | Evolved 4 slots: Propulsion x1, Utility x3 1168 | -8/Materials | Loaded intel: 12 terminal locations 1380 | -8/Materials | Identified exit to Garrison 1380 | -8/Materials | Entered Garrison 1590 | -8/Garrison | Garrison Relay disabled 1700 | -8/Garrison | Triggered checkpoint 1867 | -8/Garrison | Build established: Scavenger-Mutant 1898 | -8/Garrison | Triggered checkpoint 1928 | -8/Garrison | Garrison Relay disabled 1987 | -8/Garrison | Discovered new exit (range 5) 1999 | -8/Garrison | Garrison Relay disabled 2077 | -8/Garrison | Spotted B-75 Beast 2178 | -8/Garrison | Triggered checkpoint 2394 | -8/Garrison | Triggered checkpoint 2580 | -8/Garrison | Triggered checkpoint 3062 | -8/Garrison | Discovered new exit (range 13) 3246 | -8/Garrison | Triggered checkpoint 3266 | -8/Garrison | Garrison Relay disabled 3463 | -8/Garrison | Installed Relay Interface Framework 3574 | -8/Garrison | Entered Factory 3574 | -7/Factory | Evolved 2 slots: Propulsion x1, Utility x1 3682 | -7/Factory | Identified exit to DSF 3682 | -7/Factory | Entered DSF 3701 | -7/DSF | Additional patrols routed to DSF 3778 | -7/DSF | Self-destructed Last Messages --------------- 03766_ ALERT: Suspicious intruders detected, dispatching Cutter reinforcements to area. 03767_ Knocked back. 03768_ C-17 Slicer destroyed. 03770_ A-02 Transporter knocked back. 03771_ Slug penetrates Wall. 03771_ Hacking Suite destroyed. 03771_ Flight Unit destroyed. 03771_ Knocked back. 03772_ Katana destroyed. 03773_ C-17 Slicer destroyed. 03776_ Relay Coupler [Sentry] destroyed. 03776_ System corrupted by crushing effect (+4). 03776_ Knocked back. 03776_ A-02 Transporter destroyed. 03776_ C-17 Slicer knocked back. 03776_ Knocked back. 03776_ A-02 Transporter knocked back. 03778_ Utility Shielding destroyed. 03778_ Imp. Heat Sink destroyed. Map ----- +----------------------------------------------------+ | ????????????????????????????????????????????????? | | ????????????????????????????????????????????????? | | ????????????????????????????????????????????????? | | ????????????????????????????????????????????????? | | ????????""#?????????????????????????????????????? | | ????????#"#?????????????????????????????????????? | | ?????####"##???????#########????????????????????? | | ?????#"""""#########]] !!#????????????????????? | | ?????#"""""##==#===#]] !!#????????????????????? | | ???"##"" ^ #????????????????????? | | ???""""" =[= ] #????????????????????? | | ???###"" ##==# *%### ###????????????????????? | | ?????### !###==# ]!### ##?????????????????????? | | ??????##/%##########!! [[?????????????????????? | | ??????# *==#????????! [[#????????????????????? | | ??????# ==#???????!! [[#????????????????????? | | ??????## ###??????### ###????????????????????? | | ??????#= ^ #??????#!! !!#????????????????????? | | ??????#= #???????!! !!#????????????????????? | | ??????#= #????????! !!?????????????????????? | | ?????### ##########?#a ###?###????????????????? | | ?????# ## #!!!### ##?!!!#??*#????????????? | | ????## ## #! !## a##!!!#***## [????????? | | ????#" / ???????? | | ?????# %* H ???????? | | ?????# % cc c@% ???????? | | ?????# ##!!!#[[[##%c c%##!!!# #????????????? | | ?????# ##!!!"[[[###! ##?????????????????????? | | ?????###############?# c#??????????????????????? | | ????????????????????!! !!?????????????????????? | | ???????????????????#!! !!#????????????????????? | | ???????????????????#!! !!#????????????????????? | | ???????????????????### ###????????????????????? | | ?????????????????????! !??????????????????????? | | ?????????????????????! !!?????????????????????? | | ????????????????????!! !!?????????????????????? | | ????????????????????## ###????????????????????? | | ?????????????????????# #??????????????????????? | | ????????????????????? ??????????????????????? | | ????????????????????? ??????????????????????? | | ??????????????????????[[[!??????????????????????? | | ??????????????????????[[[???????????????????????? | | ????????????????????????????????????????????????? | | ????????????????????????????????????????????????? | | ????????????????????????????????????????????????? | | ????????????????????????????????????????????????? | | ????????????????????????????????????????????????? | | ????????????????????????????????????????????????? | | ????????????????????????????????????????????????? | | ????????????????????????????????????????????????? | +----------------------------------------------------+ Best States ------------- Heat Dissipation 48 Energy Generation 15 Energy Capacity 265 Matter Stores 300 Matter Capacity 300 Sight Range 16 Terrain Scan Range 14 Terrain Scan Density 110 Armor Coverage 225 Propulsion Shielding 66 Utility Shielding 33 Evasion (%) 63 Targeting Accuracy 5 Recoil Reduction 3 Offensive Hacking 10 Relay Coupler Types 2 Relay Coupler Value 46 Item Schematics ----------------- None Robot Schematics ------------------ None Fabricated ------------ Nothing Alien Tech Used ----------------- None Achievements -------------- None Challenges ------------ None Game ------ Seed HardenedPortableStorm Manual? 0 Play Time 00:59:56 Cumulative 60.2 hours Start 2024.11.03 @ 10:01:37 End 2024.11.03 @ 11:10:09 Sessions 1 Manual Loads 0 Difficulty Rogue Special Mode None Game No. 46 Rogue 46 Adventurer 0 Explorer 0 Win Type - Total 0 Types 0/0/0/0/0/0/0/0/0 Lore% 23 Gallery% 44 Achievement% 35 Wizard Run 0 Options --------- Layout 0 ASCII 0 Keyboard 0 Movement Arrows Keybinds 0 Fullscreen 2 Font 18/X11 Map View 76x50 Zoom Use 0% Tactical HUD 1 Map Filters NONE Filters NONE Steam 0 RUN: 287e2f2a-137f-4cf3-9208-396796072f40